bitfinex-derivatives/quotes_BTCF0:USTF0_20240902
["timestamp","ask_amount","ask_price","bid_price","bid_amount"]
[1725262916758,0.0004,57476.0,57475.0,4.84622478]
[1725262917139,0.0004,57476.0,57475.0,5.44622478]
[1725262917535,0.0004,57476.0,57475.0,4.84622478]
[1725262918146,0.0004,57476.0,57475.0,4.84622822]
[1725262918849,0.0004,57476.0,57475.0,4.48542822]
[1725262919151,0.0004,57476.0,57475.0,3.96346822]
[1725262919347,0.0004,57476.0,57475.0,4.48542822]
[1725262920250,0.0004,57476.0,57475.0,4.84622822]
[1725262920844,0.0037516,57481.0,57480.0,0.060893]
[1725262921050,0.00026101,57483.0,57480.0,0.64892596]
[1725262921445,0.19307703,57482.0,57480.0,0.64892596]
[1725262921742,0.19307703,57482.0,57481.0,0.060892]
[1725262922645,0.19307703,57482.0,57481.0,0.14772496]
[1725262923452,0.19307703,57482.0,57481.0,0.66964496]
[1725262923753,0.00387625,57483.0,57482.0,0.060891]
[1725262923962,0.00387625,57483.0,57482.0,0.061291]
[1725262924159,0.00387625,57483.0,57482.0,0.583171]
[1725262925148,0.00387625,57483.0,57482.0,0.061291]
[1725262925755,0.00026101,57483.0,57482.0,0.061291]
[1725262925954,0.00026101,57483.0,57482.0,0.583171]
[1725262927263,0.00026101,57483.0,57482.0,0.14812396]
[1725262927755,0.00026101,57483.0,57482.0,0.50892396]
[1725262928345,0.00026101,57483.0,57482.0,0.64147711]
[1725262928657,0.00026101,57483.0,57482.0,1.07652415]
[1725262929655,0.060882,57491.0,57487.0,0.060885]
[1725262929849,0.060882,57491.0,57490.0,0.1404]
[1725262930049,0.060882,57491.0,57490.0,0.14986705]
[1725262930254,0.26257043,57491.0,57490.0,0.14986705]
[1725262930459,0.26633368,57491.0,57490.0,0.06986705]
[1725262930954,0.26633368,57491.0,57490.0,0.0004]
[1725262936350,0.46633368,57491.0,57490.0,0.0004]
[1725262936745,0.46633368,57491.0,57490.0,0.0524814]
[1725262936960,0.46633368,57491.0,57490.0,0.0004]
[1725262937961,0.38633368,57491.0,57490.0,0.0004]
[1725262939260,0.38633368,57491.0,57490.0,0.06986705]
[1725262941563,0.38633368,57491.0,57490.0,0.0004]
[1725262942355,0.4379174,57491.0,57490.0,0.0004]
[1725262943865,0.38633368,57491.0,57490.0,0.0004]
[1725262949364,0.38633368,57491.0,57490.0,0.06986705]
[1725262951670,0.38633368,57491.0,57490.0,0.0004]
[1725262951671,0.45511198,57491.0,57490.0,0.0004]
[1725262951867,0.38633368,57491.0,57490.0,0.0004]
[1725262954971,0.32545168,57491.0,57490.0,0.061283]
[1725262955169,0.32545168,57491.0,57490.0,0.14811681]
[1725262955170,0.25717391,57491.0,57490.0,0.14811681]
[1725262955364,0.20545168,57491.0,57490.0,0.19382491]
[1725262958874,0.25717391,57491.0,57490.0,0.061283]
[1725262959480,0.75713368,57491.0,57490.0,0.0004]
[1725262959976,0.83713368,57491.0,57490.0,0.0004]
[1725262961171,0.83713368,57491.0,57490.0,0.0525697]
[1725262961983,0.75713368,57491.0,57490.0,0.0525697]
[1725262962278,0.89713368,57491.0,57490.0,0.0004]
[1725262962871,0.89713368,57491.0,57490.0,0.05256021]
[1725262964575,0.75713368,57491.0,57490.0,0.0004]
[1725262965177,0.82607814,57491.0,57490.0,0.0004]
[1725262966173,0.75713368,57491.0,57490.0,0.0004]
[1725262969577,0.62713368,57491.0,57490.0,0.0004]
[1725262971473,0.26633368,57491.0,57490.0,0.0004]
[1725262972489,0.31804904,57491.0,57490.0,0.0004]
[1725262973983,0.26633368,57491.0,57490.0,0.0004]
[1725262974175,0.31804904,57491.0,57490.0,0.0004]
[1725262974375,0.31804904,57491.0,57490.0,0.3612]
[1725262974376,0.26633368,57491.0,57490.0,0.3612]
[1725262974991,0.20545168,57491.0,57490.0,0.50903381]
[1725262975187,0.20545168,57491.0,57490.0,0.64157329]
[1725262975381,0.20545168,57491.0,57490.0,0.64157325]
[1725262975577,0.20545168,57491.0,57490.0,4.41157325]
[1725262977079,0.00376325,57491.0,57490.0,4.41157325]
[1725262977280,0.11259336,57495.0,57490.0,4.41157325]
[1725262977494,0.20259336,57495.0,57494.0,0.0004]
[1725262977883,0.33875028,57495.0,57494.0,0.0004]
[1725262978491,0.24875028,57495.0,57494.0,0.0004]
[1725262979080,0.18787228,57495.0,57494.0,0.201278]
[1725262979292,0.00363812,57496.0,57494.0,1.39473257]
[1725262979478,0.00363812,57496.0,57495.0,0.49373257]
[1725262979677,0.1893825,57503.0,57500.0,0.060872]
[1725262979878,0.2693825,57503.0,57502.0,0.5012]
[1725262980092,0.08,57503.0,57502.0,0.5012]
[1725262980294,0.08,57503.0,57502.0,0.5475]
[1725262981086,0.11623192,57505.0,57502.0,0.5475]
[1725262981294,0.06451656,57505.0,57504.0,0.0004]
[1725262983792,0.07451656,57505.0,57504.0,0.0004]
[1725262983986,0.07451656,57505.0,57504.0,0.0804]
[1725262984384,0.06451656,57505.0,57504.0,0.0804]
[1725262984581,0.06451656,57505.0,57504.0,0.13242981]
[1725262984891,0.06451656,57505.0,57504.0,0.49322981]
[1725262986484,0.06451656,57505.0,57504.0,0.4412]
[1725262986879,0.06451656,57505.0,57504.0,0.0804]
[1725262987087,0.06451656,57505.0,57504.0,0.4412]
[1725262987979,0.06451656,57505.0,57504.0,0.0804]
[1725262988194,0.06451656,57505.0,57504.0,0.4412]
[1725262988893,0.25429074,57505.0,57504.0,0.4412]
[1725262993402,0.83510374,57505.0,57501.0,0.05198912]
[1725262993598,0.06127,57502.0,57497.0,0.0519997]
[1725262993894,0.060875,57497.0,57495.0,0.08]
[1725262994095,0.161275,57497.0,57495.0,0.08]
[1725262994395,0.34684881,57497.0,57495.0,0.08]
[1725262995294,0.34684881,57497.0,57494.0,0.1319997]
[1725262995887,0.24684881,57497.0,57494.0,0.1319997]
[1725262996088,0.24684881,57497.0,57496.0,0.05226071]
[1725262997293,0.24684881,57497.0,57496.0,0.13226071]
[1725262997496,0.24684881,57497.0,57496.0,0.08026101]
[1725262999004,0.25055716,57497.0,57496.0,0.08026101]
[1725263000395,0.25055716,57497.0,57496.0,0.00026101]
[1725263000899,0.25055716,57497.0,57496.0,0.08026101]
[1725263001992,0.18968216,57497.0,57496.0,0.08026101]
[1725263003394,0.00370835,57497.0,57496.0,0.08026101]
[1725263003600,0.060873,57499.0,57496.0,0.08026101]
[1725263003794,0.060873,57499.0,57498.0,0.06982967]
[1725263004194,0.2625407,57499.0,57498.0,0.06982967]
[1725263004599,0.2625407,57499.0,57498.0,0.0004]
[1725263004793,0.2016677,57499.0,57498.0,0.06984175]
[1725263004993,0.2016677,57499.0,57498.0,0.0004]
[1725263005195,0.1831602,57501.0,57498.0,0.0004]
[1725263005506,0.0004,57502.0,57500.0,0.0804]
[1725263005694,0.1831602,57501.0,57500.0,0.0804]
[1725263006096,0.1831602,57501.0,57500.0,0.08]
[1725263006401,0.1831602,57501.0,57500.0,0.1494461]
[1725263007400,0.1831602,57501.0,57500.0,0.0694461]
[1725263007613,0.1831602,57501.0,57499.0,0.0694461]
[1725263007903,0.0004,57500.0,57499.0,0.0694461]
[1725263008106,0.0004,57500.0,57498.0,0.140874]
[1725263008306,0.0004,57499.0,57498.0,0.140874]
[1725263008803,0.19047101,57499.0,57498.0,0.140874]
[1725263017810,0.19047101,57499.0,57498.0,0.22771688]
[1725263018514,0.19047101,57499.0,57498.0,0.6341964]
[1725263019212,0.19047101,57499.0,57498.0,0.501674]
[1725263019415,0.19047101,57499.0,57498.0,0.58854984]
[1725263019604,0.19047101,57499.0,57498.0,0.72106625]
[1725263020428,0.19047101,57499.0,57498.0,0.63419041]
[1725263023914,0.0004,57499.0,57498.0,0.63419041]
[1725263024415,0.0004,57499.0,57498.0,0.27339041]
[1725263024609,0.0004,57499.0,57498.0,0.63419041]
[1725263027822,0.00412403,57502.0,57501.0,0.060871]
[1725263028009,0.00412403,57502.0,57501.0,0.27378741]
[1725263028911,0.00372403,57502.0,57501.0,0.27378741]
[1725263029117,0.05171536,57505.0,57503.0,0.060869]
[1725263029317,0.05171536,57505.0,57504.0,0.0804]
[1725263029715,0.18315988,57505.0,57504.0,0.0804]
[1725263029909,0.23487524,57505.0,57504.0,0.0804]
[1725263030213,0.05171536,57505.0,57504.0,0.0804]
[1725263030412,0.24433483,57505.0,57504.0,0.0804]
[1725263031016,0.19261947,57505.0,57504.0,0.0804]
[1725263031415,0.18789934,57507.0,57504.0,0.0804]
[1725263031717,0.27876434,57507.0,57506.0,0.0004]
[1725263031917,0.41962934,57507.0,57506.0,0.06992219]
[1725263032116,0.4885738,57507.0,57506.0,0.06992219]
[1725263032318,0.4885738,57507.0,57506.0,0.0004]
[1725263032516,0.4885738,57507.0,57506.0,0.06992219]
[1725263032721,0.41962934,57507.0,57506.0,0.06992219]
[1725263032914,0.41962934,57507.0,57506.0,0.0004]
[1725263033517,0.41962934,57507.0,57500.0,0.06952219]
[1725263033518,1.78037934,57507.0,57500.0,0.06952219]
[1725263033717,0.4408,57501.0,57500.0,0.06952219]
[1725263034011,0.73597741,57501.0,57498.0,0.06952219]
[1725263034212,0.0804,57499.0,57496.0,0.0697832]
[1725263034409,0.0004,57497.0,57496.0,0.00026101]
[1725263034610,0.12,57497.0,57496.0,0.00026101]
[1725263034816,0.88741241,57497.0,57496.0,0.05214528]
[1725263035117,0.060878,57494.0,57493.0,0.05214987]
[1725263035319,0.622078,57494.0,57493.0,0.05214987]
[1725263035519,0.060881,57492.0,57491.0,0.05214987]
[1725263035715,0.181281,57492.0,57491.0,0.05214987]
[1725263035915,0.36419622,57492.0,57491.0,0.05214987]
[1725263036125,0.060884,57489.0,57488.0,0.08]
[1725263036419,0.060886,57487.0,57486.0,0.1497832]
[1725263036622,0.061286,57487.0,57486.0,0.1497832]
[1725263036826,0.25137494,57487.0,57486.0,0.1497832]
[1725263037418,0.25137494,57487.0,57486.0,0.08026101]
[1725263037822,0.61217494,57487.0,57486.0,0.08026101]
[1725263038329,0.61217494,57487.0,57486.0,0.00026101]
[1725263040424,0.69217494,57487.0,57486.0,0.05230515]
[1725263040935,0.69217494,57487.0,57486.0,0.00026101]
[1725263044947,0.79217494,57487.0,57486.0,0.00026101]
[1725263045745,0.71217494,57487.0,57486.0,0.00026101]
[1725263045946,0.79217494,57487.0,57486.0,0.00026101]
[1725263051855,0.43137494,57487.0,57486.0,0.00026101]
[1725263052150,0.79217494,57487.0,57486.0,0.00026101]
[1725263054149,0.43137494,57487.0,57486.0,0.00026101]
[1725263054353,0.79217494,57487.0,57486.0,0.00026101]
[1725263059045,0.79217494,57487.0,57486.0,0.05224917]
[1725263059455,0.79217494,57487.0,57486.0,0.00026101]
[1725263063561,0.84383748,57487.0,57486.0,0.00026101]
[1725263064062,0.79217494,57487.0,57486.0,0.00026101]
[1725263065664,0.29048894,57487.0,57486.0,0.08026101]
[1725263065865,0.29048894,57487.0,57486.0,0.27370359]
[1725263067163,0.00377775,57489.0,57488.0,0.060885]
[1725263067360,0.05166254,57496.0,57488.0,0.83869921]
[1725263067563,0.05166254,57498.0,57495.0,0.08]
[1725263067768,0.13166254,57498.0,57496.0,0.0451]
[1725263067961,0.44884359,57498.0,57496.0,0.0451]
[1725263068161,0.060875,57497.0,57496.0,0.0451]
[1725263068470,0.1985985,57497.0,57496.0,0.0451]
[1725263068969,0.1985985,57497.0,57496.0,0.0917]
[1725263069566,0.0036595,57498.0,57496.0,0.152576]
[1725263069759,0.3262,57499.0,57496.0,0.152576]
[1725263069962,0.3262,57499.0,57498.0,0.140874]
[1725263070667,0.00026101,57502.0,57498.0,0.140874]
[1725263070970,0.19033,57501.0,57499.0,0.3608]
[1725263071371,0.19033,57501.0,57500.0,0.0694419]
[1725263073367,0.19033,57501.0,57499.0,0.4302419]
[1725263073569,0.0004,57500.0,57499.0,0.4302419]
[1725263074465,0.0004,57500.0,57499.0,0.3608]
[1725263078061,0.0004,57500.0,57499.0,0.41280489]
[1725263078366,0.0004,57500.0,57499.0,0.41280509]
[1725263078562,0.34107485,57500.0,57499.0,0.05200509]
[1725263078771,0.34107485,57500.0,57494.0,0.060878]
[1725263078772,0.34107585,57500.0,57498.0,0.05200509]
[1725263079077,0.0804,57499.0,57498.0,0.05200509]
[1725263079576,0.28177235,57499.0,57495.0,0.0694419]
[1725263079868,0.0004,57496.0,57495.0,0.0694419]
[1725263080071,0.0004,57496.0,57494.0,0.060878]
[1725263080576,0.0004,57495.0,57494.0,0.1303199]
[1725263080775,0.0004,57495.0,57494.0,0.2103199]
[1725263082871,0.0004,57495.0,57494.0,0.1303199]
[1725263083074,0.0004,57495.0,57494.0,0.2103199]
[1725263085574,0.0004,57495.0,57494.0,0.140878]
[1725263086379,0.0004,57495.0,57494.0,0.21024777]
[1725263088277,0.0004,57495.0,57494.0,0.57104777]
[1725263089476,0.0004,57495.0,57494.0,0.501678]
[1725263089674,0.0004,57495.0,57494.0,0.140878]
[1725263090477,0.0004,57495.0,57494.0,0.421678]
[1725263090783,0.0004,57495.0,57494.0,0.501678]
[1725263091978,0.0004,57495.0,57494.0,0.421678]
[1725263092281,0.0004,57495.0,57494.0,0.501678]
[1725263094870,0.0004,57495.0,57494.0,0.58862989]
[1725263095274,0.0004,57495.0,57494.0,0.72115955]
[1725263095480,0.0004,57495.0,57494.0,0.63420766]
[1725263096479,0.00400275,57495.0,57494.0,0.63420766]
[1725263096680,0.0004,57495.0,57494.0,0.63420766]
[1725263100480,0.0004,57495.0,57494.0,0.501678]
[1725263100680,0.0004,57495.0,57494.0,0.63420706]
[1725263101187,0.0004,57495.0,57494.0,0.6378836]
[1725263102584,0.0004,57495.0,57494.0,0.5578836]
[1725263102884,0.0004,57495.0,57494.0,0.55420706]
[1725263103192,0.0004,57495.0,57494.0,0.19340706]
[1725263103488,0.0004,57495.0,57494.0,0.55420706]
[1725263103984,0.0004,57495.0,57494.0,0.55420642]
[1725263106578,0.0004,57495.0,57494.0,0.49332842]
[1725263106787,0.0004,57495.0,57487.0,0.4087]
[1725263106788,1.57815966,57495.0,57492.0,0.08698919]
[1725263107089,0.4412,57493.0,57487.0,0.44778919]
[1725263107286,0.55342073,57488.0,57487.0,0.08698919]
[1725263107489,0.060886,57487.0,57482.0,0.44778919]
[1725263107801,0.37660837,57487.0,57482.0,0.3608]
[1725263107990,0.37620837,57487.0,57482.0,0.3608]
[1725263108493,0.37620837,57487.0,57484.0,0.06951181]
[1725263108682,0.37620837,57487.0,57483.0,0.06951181]
[1725263109383,0.060891,57482.0,57481.0,0.06951181]
[1725263109588,0.181291,57482.0,57480.0,0.06951181]
[1725263109789,0.060893,57480.0,57479.0,0.06951181]
[1725263109989,0.060893,57480.0,57477.0,0.06951181]
[1725263109990,0.060895,57478.0,57477.0,0.06951181]
[1725263110190,0.261295,57478.0,57477.0,0.06951181]
[1725263110384,0.060897,57477.0,57475.0,0.06951181]
[1725263110594,0.0804,57476.0,57475.0,0.06951181]
[1725263110794,0.0804,57476.0,57470.0,0.00026101]
[1725263110795,0.38668491,57476.0,57470.0,0.0872502]
[1725263110992,0.0004,57471.0,57470.0,0.0872502]
[1725263111293,0.18283072,57471.0,57470.0,0.00026101]
[1725263111794,0.18283072,57475.0,57470.0,0.00026101]
[1725263111991,0.08,57476.0,57470.0,0.00026101]
[1725263112295,0.15,57476.0,57474.0,0.06939197]
[1725263112490,0.07,57476.0,57475.0,0.14939197]
[1725263112686,0.00026101,57482.0,57477.0,0.060896]
[1725263112890,0.00397655,57482.0,57479.0,0.51015723]
[1725263113085,0.20079901,57481.0,57479.0,0.51015723]
[1725263113397,0.20079901,57481.0,57470.0,0.00026101]
[1725263113398,0.140893,57480.0,57478.0,0.06935723]
[1725263113585,0.140893,57480.0,57470.0,0.00026101]
[1725263113586,0.060895,57478.0,57477.0,0.05200934]
[1725263113781,0.850895,57478.0,57476.0,0.05200934]
[1725263113990,0.1276,57477.0,57476.0,0.05200934]
[1725263114193,0.060898,57476.0,57474.0,0.05200934]
[1725263114390,0.060898,57476.0,57473.0,0.05200934]
[1725263114391,0.0609,57474.0,57473.0,0.05200934]
[1725263114581,0.2509,57474.0,57473.0,0.05200934]
[1725263114786,0.4363859,57474.0,57473.0,0.05200934]
[1725263115287,0.4363859,57474.0,57472.0,0.05200934]
[1725263115488,0.0004,57473.0,57472.0,0.05200934]
[1725263115896,0.19089119,57473.0,57472.0,0.05200934]
[1725263116092,0.19089119,57473.0,57471.0,0.4408]
[1725263116399,0.0004,57472.0,57471.0,0.4408]
[1725263116595,0.0004,57472.0,57471.0,0.51015723]
[1725263116788,0.18491329,57472.0,57471.0,0.51015723]
[1725263118119,0.18491329,57472.0,57471.0,0.63106023]
[1725263118289,0.3608,57494.0,57481.0,0.060892]
[1725263118290,0.0476,57491.0,57481.0,0.060892]
[1725263118591,0.00377577,57486.0,57481.0,0.561692]
[1725263118788,0.00377577,57486.0,57481.0,4.853612]
[1725263119092,0.00377577,57486.0,57481.0,4.331692]
[1725263119983,0.29578777,57482.0,57479.0,0.06925967]
[1725263120182,0.060892,57481.0,57478.0,0.06925967]
[1725263120390,0.060892,57481.0,57480.0,0.05194568]
[1725263120391,0.170892,57481.0,57480.0,0.05194568]
[1725263120700,0.37032649,57481.0,57479.0,0.05194568]
[1725263121284,0.37032649,57481.0,57480.0,0.05194568]
[1725263121599,0.37032649,57481.0,57477.0,3.83925967]
[1725263122200,0.00026101,57482.0,57480.0,0.14]
[1725263122397,0.00026101,57482.0,57480.0,0.06925967]
[1725263122896,0.00026101,57482.0,57479.0,0.060894]
[1725263122897,0.00026101,57482.0,57479.0,0.06925967]
[1725263123085,0.19578863,57481.0,57477.0,0.06925967]
[1725263123404,0.0004,57478.0,57476.0,0.43005967]
[1725263123591,0.0004,57478.0,57476.0,0.3608]
[1725263123794,0.18254161,57477.0,57476.0,0.3608]
[1725263124095,0.18254161,57477.0,57474.0,0.060899]
[1725263124289,0.0004,57475.0,57474.0,0.060899]
[1725263124691,0.0004,57475.0,57474.0,0.13015867]
[1725263125995,0.0004,57475.0,57473.0,0.06929117]
[1725263126194,0.0004,57475.0,57472.0,0.06929117]
[1725263126195,0.0004,57474.0,57472.0,0.06929117]
[1725263126500,0.2425777,57473.0,57472.0,0.06929117]
[1725263126693,0.060902,57472.0,57471.0,0.3608]
[1725263126887,0.060903,57471.0,57470.0,0.06955218]
[1725263127087,0.311303,57471.0,57470.0,0.05224243]
[1725263127295,0.4929797,57471.0,57470.0,0.00026101]
[1725263129302,1.0149797,57471.0,57470.0,0.00026101]
[1725263130404,1.6758827,57471.0,57470.0,0.00026101]
[1725263131495,1.6758827,57471.0,57457.0,0.07289117]
[1725263131496,1.6149797,57471.0,57462.0,0.05198012]
[1725263131692,0.060913,57461.0,57459.0,0.06929117]
[1725263131895,0.0004,57460.0,57459.0,0.06929117]
[1725263132198,0.18824352,57460.0,57459.0,0.06929117]
[1725263132395,0.24915752,57460.0,57459.0,0.06929117]
[1725263132786,0.18593624,57462.0,57458.0,0.06929117]
[1725263132989,0.061316,57459.0,57458.0,0.06929117]
[1725263133400,0.38725224,57459.0,57458.0,0.06929117]
[1725263133908,0.060917,57458.0,57457.0,0.0036]
[1725263134207,0.25220777,57458.0,57457.0,0.0036]
[1725263134709,0.25220777,57458.0,57457.0,0.07292807]
[1725263134898,0.25220777,57458.0,57457.0,0.0036]
[1725263135898,0.25220777,57458.0,57457.0,0.3644]
[1725263137196,0.0004,57458.0,57457.0,0.3644]
[1725263137705,0.0004,57458.0,57457.0,0.45096976]
[1725263138915,0.0004,57458.0,57457.0,0.64449511]
[1725263139103,0.0004,57458.0,57457.0,0.51188776]
[1725263140107,0.0004,57458.0,57457.0,0.3644]
[1725263140108,0.33334126,57458.0,57457.0,0.3644]
[1725263141215,0.39425826,57458.0,57457.0,0.05562256]
[1725263141414,0.758739,57458.0,57457.0,0.0036]
[1725263142313,0.12184,57455.0,57454.0,0.00026101]
[1725263142501,0.12184,57455.0,57446.0,5.6e-07]
[1725263142502,0.060921,57454.0,57446.0,5.6e-07]
[1725263142807,0.060939,57437.0,57435.0,0.3608]
[1725263143003,0.14,57436.0,57435.0,0.3608]
[1725263143209,0.32354955,57436.0,57435.0,0.3608]
[1725263145217,0.18354955,57436.0,57435.0,0.3608]
[1725263146221,0.20213211,57440.0,57435.0,0.3608]
[1725263146608,0.00398125,57441.0,57435.0,0.3608]
[1725263146808,0.00026101,57441.0,57440.0,0.3608]
[1725263147019,0.00026101,57441.0,57435.0,0.3608]
[1725263147322,0.19228703,57440.0,57435.0,0.3608]
[1725263147614,0.00026101,57441.0,57435.0,0.3608]
[1725263148010,0.20192516,57439.0,57436.0,0.06094]
[1725263148210,0.20192516,57440.0,57437.0,0.046]
[1725263148506,0.00026101,57441.0,57437.0,0.106939]
[1725263148712,0.18918002,57440.0,57437.0,0.106939]
[1725263149213,0.18918002,57440.0,57438.0,0.060938]
[1725263149628,0.18918002,57440.0,57439.0,3.77]
[1725263149923,0.18958002,57440.0,57439.0,3.77]
[1725263150730,0.0004,57440.0,57439.0,0.52228]
[1725263151317,0.0004,57440.0,57438.0,0.060938]
[1725263151519,0.0004,57439.0,57438.0,0.060938]
[1725263151718,0.0004,57439.0,57438.0,3.830938]
[1725263151913,0.0004,57439.0,57438.0,4.353218]
[1725263152318,0.0004,57439.0,57438.0,4.4225929]
[1725263153021,0.0004,57439.0,57438.0,4.953218]
[1725263153721,0.0004,57439.0,57438.0,4.353218]
[1725263153917,0.0004,57439.0,57438.0,3.830938]
[1725263154519,0.0004,57439.0,57438.0,0.060938]
[1725263154819,0.0004,57439.0,57438.0,4.353218]
[1725263155123,0.0004,57439.0,57438.0,3.830938]
[1725263155527,0.0004,57439.0,57438.0,4.353218]
[1725263155722,0.0004,57439.0,57438.0,3.830938]
[1725263155924,0.0004,57439.0,57438.0,0.060938]
[1725263156220,0.060929,57446.0,57439.0,0.060937]
[1725263156426,0.180929,57446.0,57442.0,0.06922188]
[1725263156614,0.36669395,57446.0,57442.0,0.06922188]
[1725263156813,0.36669395,57446.0,57441.0,0.06922188]
[1725263157026,0.36669395,57446.0,57439.0,0.060937]
[1725263157027,0.36669395,57446.0,57442.0,0.06922188]
[1725263157723,0.36669395,57446.0,57443.0,0.3608]
[1725263158112,0.14,57444.0,57439.0,0.13015888]
[1725263158315,0.12,57444.0,57439.0,0.13015888]
[1725263158618,0.19434826,57443.0,57441.0,0.06922188]
[1725263158818,0.20434826,57443.0,57441.0,0.06922188]
[1725263159113,0.01,57443.0,57441.0,0.06922188]
[1725263159327,0.01,57443.0,57442.0,0.06922188]
[1725263159719,0.20358831,57443.0,57441.0,0.06922188]
[1725263159916,0.0004,57442.0,57441.0,0.06922188]
[1725263160424,0.19398831,57442.0,57440.0,0.1359]
[1725263160728,0.0004,57441.0,57440.0,0.1359]
[1725263161231,0.19438621,57441.0,57440.0,0.0453]
[1725263161925,0.19438621,57441.0,57439.0,0.060937]
[1725263161926,0.19438621,57441.0,57439.0,0.13025661]
[1725263162135,0.201336,57440.0,57439.0,0.06931961]
[1725263162317,0.060937,57439.0,57438.0,0.0004]
[1725263162523,0.226637,57439.0,57438.0,0.0004]
[1725263162729,0.42224919,57439.0,57438.0,0.0004]
[1725263168124,0.42224919,57439.0,57430.0,0.00026101]
[1725263168125,1.48359219,57439.0,57430.0,0.06958062]
[1725263168319,0.200945,57431.0,57430.0,0.00026101]
[1725263168817,0.39308128,57431.0,57430.0,0.00026101]
[1725263169428,0.52308128,57431.0,57430.0,0.00026101]
[1725263171319,0.19213628,57431.0,57430.0,0.00026101]
[1725263171632,0.18969196,57432.0,57430.0,0.42200701]
[1725263171921,0.19330924,57435.0,57432.0,0.060943]
[1725263172121,0.19330924,57435.0,57434.0,0.060942]
[1725263172325,0.00361728,57435.0,57434.0,0.19360882]
[1725263172724,0.00026101,57436.0,57434.0,3.96360882]
[1725263173029,0.00026101,57436.0,57435.0,0.13266682]
[1725263175129,0.00026101,57436.0,57435.0,3.90266682]
[1725263175332,0.00026101,57436.0,57435.0,4.42498682]
[1725263175519,0.00026101,57436.0,57435.0,5.02498682]
[1725263175721,0.0004,57440.0,57439.0,0.14]
[1725263175924,0.0004,57440.0,57439.0,0.63346682]
[1725263176128,0.0004,57440.0,57439.0,1.15574682]
[1725263176523,0.687,57454.0,57439.0,1.75574682]
[1725263176831,0.00026101,57450.0,57446.0,0.44761448]
[1725263177019,0.00026101,57450.0,57448.0,0.060927]
[1725263178021,0.00026101,57450.0,57446.0,0.3608]
[1725263178328,0.00026101,57450.0,57448.0,0.06943992]
[1725263178728,0.00026101,57450.0,57447.0,0.06943992]
[1725263179725,0.00026101,57450.0,57448.0,0.06943992]
[1725263179919,0.00026101,57450.0,57447.0,0.060928]
[1725263180134,0.00026101,57450.0,57448.0,0.3608]
[1725263180626,0.1422,57449.0,57448.0,0.3608]
[1725263180827,0.1422,57449.0,57448.0,0.58023677]
[1725263181133,0.1422,57449.0,57448.0,1.01562229]
[1725263181327,0.1412,57449.0,57448.0,1.01662229]
[1725263181628,0.1412,57449.0,57448.0,0.97073194]
[1725263181833,0.1412,57449.0,57448.0,0.422727]
[1725263182327,0.2512,57449.0,57448.0,0.07038681]
[1725263182527,0.2512,57449.0,57448.0,0.001]
[1725263182932,0.312126,57449.0,57448.0,0.001]
[1725263183123,0.44939661,57449.0,57443.0,0.06938681]
[1725263183323,0.119,57446.0,57442.0,0.00026101]
[1725263183518,0.0004,57443.0,57442.0,0.00026101]
[1725263183919,0.19891955,57443.0,57442.0,0.00026101]
[1725263184125,0.19791955,57443.0,57442.0,0.00026101]
[1725263184621,0.19891955,57443.0,57442.0,0.36106101]
[1725263185323,0.19891955,57443.0,57442.0,0.43044782]
[1725263185532,0.19891955,57443.0,57442.0,0.50106101]
[1725263185730,0.001,57443.0,57442.0,0.56199501]
[1725263185929,0.001,57443.0,57442.0,0.42199501]
[1725263186231,0.004,57443.0,57442.0,0.42199501]
[1725263186733,0.005,57443.0,57442.0,0.42199501]
[1725263186934,0.002,57443.0,57442.0,0.42499501]
[1725263187344,0.202127,57449.0,57442.0,0.42599501]
[1725263187528,0.312127,57449.0,57442.0,0.42599501]
[1725263187727,0.19558282,57448.0,57443.0,0.06939736]
[1725263188139,0.19558282,57448.0,57445.0,0.13032736]
[1725263188837,0.19558282,57448.0,57445.0,0.06939736]
[1725263189141,0.1412,57449.0,57447.0,0.5008]
[1725263189326,0.1412,57449.0,57448.0,0.22371573]
[1725263189527,0.1432,57449.0,57448.0,0.22371573]
[1725263189735,0.1432,57449.0,57448.0,0.154327]
[1725263189736,0.1452,57449.0,57448.0,0.154327]
[1725263190325,0.1482,57449.0,57448.0,0.154327]
[1725263190528,0.1552,57449.0,57448.0,0.154327]
[1725263191228,0.1572,57449.0,57448.0,0.155327]
[1725263192326,0.1502,57449.0,57448.0,0.155327]
[1725263192532,0.1592,57449.0,57448.0,0.155327]
[1725263192734,0.1592,57449.0,57448.0,0.24205894]
[1725263192943,0.1592,57449.0,57448.0,0.3746774]
[1725263193155,0.1412,57449.0,57448.0,0.3736774]
[1725263193327,0.1532,57449.0,57448.0,0.3746774]
[1725263193643,0.1532,57449.0,57448.0,1.41014546]
[1725263194532,0.1532,57449.0,57448.0,1.49680591]
[1725263194933,0.1532,57449.0,57448.0,1.41014546]
[1725263195544,0.1532,57449.0,57448.0,1.49679528]
[1725263195729,0.1532,57449.0,57448.0,1.41014285]
[1725263198638,0.1532,57449.0,57448.0,1.41054285]
[1725263198843,0.105904,57470.0,57449.0,0.583126]
[1725263199047,0.045,57470.0,57469.0,0.0004]
[1725263199236,0.15867195,57470.0,57469.0,0.0004]
[1725263199434,0.34941056,57470.0,57469.0,0.0004]
[1725263200345,0.42131456,57470.0,57469.0,0.0014]
[1725263200546,0.42931456,57470.0,57469.0,0.0014]
[1725263202039,0.43531456,57470.0,57469.0,0.0024]
[1725263203144,0.24457595,57470.0,57469.0,0.0024]
[1725263203845,0.135,57470.0,57469.0,0.0024]
[1725263204052,0.025,57470.0,57469.0,0.203305]
[1725263204347,0.00026101,57475.0,57472.0,0.060902]
[1725263204649,0.00026101,57475.0,57474.0,0.0004]
[1725263205352,0.00026101,57475.0,57474.0,0.0613]
[1725263205746,0.00526101,57475.0,57474.0,0.0613]
[1725263206346,0.00026101,57475.0,57474.0,0.0613]
[1725263206543,0.00526101,57475.0,57474.0,0.0623]
[1725263206747,0.01926101,57475.0,57474.0,0.0633]
[1725263207247,0.01926101,57475.0,57474.0,0.0024]
[1725263210345,0.13926101,57475.0,57474.0,0.0024]
[1725263211746,0.20016001,57475.0,57474.0,0.0024]
[1725263211941,0.52177475,57475.0,57474.0,0.0024]
[1725263212340,0.50777475,57475.0,57474.0,0.0014]
[1725263212540,0.50577475,57475.0,57474.0,0.0024]
[1725263213547,0.36577475,57475.0,57474.0,0.0024]
[1725263214645,0.30487575,57475.0,57474.0,0.0024]
[1725263215246,0.30487575,57475.0,57474.0,0.0014]